fUST/lending_fUST_20251228
["ID","MTS","AMOUNT","RATE_DAILY","PERIOD"]
[399951707,1766934639924,-125119.88204743,0.00024142,2]
[399951708,1766934639934,-187246.67412292,0.00024142,2]
[399951709,1766934639944,-36553.15838744,0.00024142,2]
[399951710,1766934639955,-251.75554,0.00024142,2]
[399951711,1766934639964,-251.75554,0.00024142,2]
[399951712,1766934639978,-251.75554,0.00024142,2]
[399951713,1766934639989,-251.75554,0.00024142,2]
[399951714,1766934639998,-251.75554,0.00024142,2]
[399951715,1766934640010,-251.75554,0.00024142,2]
[399951716,1766934640020,-251.75554,0.00024142,2]
[399951717,1766934640031,-251.75554,0.00024142,2]
[399951718,1766934640042,-251.75554,0.00024142,2]
[399951719,1766934640052,-251.75554,0.00024142,2]
[399951720,1766934640061,-251.75554,0.00024142,2]
[399951721,1766934640071,-251.75554,0.00024142,2]
[399951722,1766934640081,-1300.0,0.00024175,2]
[399951723,1766934640091,-1300.0,0.0002419,2]
[399951724,1766934640100,-4899.0,0.00024199,6]
[399951725,1766934640110,-156.93,0.000242,2]
[399951726,1766934640120,-1074.39,0.000242,14]
[399951727,1766934640129,-8007.25,0.000242,2]
[399951728,1766934640139,-177.86608778,0.00024211,14]
[399951729,1766934640148,-500.0,0.0002427,2]
[399951730,1766934640157,-500.0,0.00024317,2]
[399951731,1766934640166,-150.0,0.0002432,2]
[399951732,1766934640175,-150.0,0.0002432,2]
[399951733,1766934640185,-1300.0,0.00024374,2]
[399951734,1766934640194,-1300.0,0.00024412,2]
[399951735,1766934640204,-1300.0,0.00024433,2]
[399951736,1766934640213,-251.75554,0.00024454,2]
[399951737,1766934640222,-251.75554,0.00024454,2]
[399951738,1766934640232,-251.75554,0.00024454,2]
[399951739,1766934640241,-251.75554,0.00024454,2]
[399951740,1766934640251,-177.86608778,0.00024492,18]
[399951741,1766934640260,-245.57686301,0.00024508,2]
[399951742,1766934640269,-218.44502857,0.00024508,2]
[399951743,1766934640278,-163.75518554,0.00024508,2]
[399951744,1766934640289,-190.67469867,0.00024508,2]
[399951745,1766934640300,-232.16721806,0.00024508,2]
[399951746,1766934640310,-283.21065879,0.00024508,2]
[399951747,1766934640319,-255.15010413,0.00024508,2]
[399951748,1766934640329,-1300.0,0.00024529,2]
[399951749,1766934640338,-596.66697051,0.00024532,30]
[399951750,1766934640348,-298.38348526,0.00024537,30]
[399951751,1766934640358,-298.38348526,0.00024542,30]
[399951752,1766934640368,-298.38348526,0.00024547,30]
[399951754,1766934640378,-1300.0,0.00024549,2]
[399951755,1766934640388,-298.38348526,0.00024552,30]
[399951756,1766934640397,-298.38348526,0.00024557,30]
[399951757,1766934640407,-298.38348526,0.00024562,30]
[399951758,1766934640418,-298.38348526,0.00024567,30]
[399951759,1766934640427,-500.0,0.00024569,2]
[399951760,1766934640437,-298.38348526,0.00024572,30]
[399951761,1766934640446,-298.38348526,0.00024577,30]
[399951762,1766934640456,-1300.0,0.00024581,2]
[399951763,1766934640468,-298.38348526,0.00024582,30]
[399951764,1766934640478,-298.38348526,0.00024587,30]
[399951765,1766934640488,-298.38348526,0.00024592,30]
[399951766,1766934640497,-1790.20091153,0.00024598,30]
[399951767,1766934640507,-222.11697863,0.00024598,30]
[399951768,1766934640516,-248.72025876,0.00024598,110]
[399951769,1766934640525,-103169.03522814,0.0002465,2]
[399951770,1766934640534,-53458.13284343,0.0002465,2]
[399951771,1766934640544,-513.44372861,0.0002465,2]
[399951772,1766934640554,-201.62,0.0002465,7]
[399951774,1766934640563,-251.75554,0.0002465,2]
[399951776,1766934640572,-251.75554,0.0002465,2]
[399951778,1766934640582,-251.75554,0.0002465,2]
[399951780,1766934640591,-251.755542,0.0002465,2]
[399951782,1766934640600,-150.0,0.00024658,2]
[399951784,1766934640610,-380.0,0.00024658,2]
[399951786,1766934640620,-200.0,0.00024658,2]
[399951788,1766934640629,-151.0,0.00024658,2]
[399951790,1766934640638,-154.73576,0.00024658,2]
[399951792,1766934640647,-500.0,0.00024658,2]
[399951794,1766934640657,-159.96314885,0.00024702,2]
[399951796,1766934640666,-500.0,0.00024728,2]
[399951798,1766934640675,-1300.0,0.00024736,2]
[399951800,1766934640685,-1300.0,0.00024751,2]
[399951802,1766934640694,-1000.0,0.00024752,10]
[399951804,1766934640703,-791.0,0.00024752,10]
[399951806,1766934640712,-7697.83132789,0.00024773,2]
[399951808,1766934640721,-177.86608778,0.00024773,22]
[399951810,1766934640732,-16810.07783505,0.00024774,2]
[399951812,1766934640741,-1300.0,0.00024782,2]
[399951814,1766934640750,-500.0,0.00024795,2]
[399951816,1766934640760,-374874.609238,0.000248,2]
[399951818,1766934640770,-245.57686301,0.00024802,17]
[399951820,1766934640779,-163.75518554,0.00024802,6]
[399951822,1766934640788,-255.15010413,0.00024802,6]
[399951824,1766934640798,-500.0,0.00024873,2]
[399951826,1766934640810,-500.0,0.00024873,2]
[399951828,1766934640819,-500.0,0.00024873,2]
[399951831,1766934640830,-500.0,0.00024873,2]
[399951833,1766934640839,-500.0,0.00024873,2]
[399951835,1766934640848,-500.0,0.00024873,2]
[399951837,1766934640858,-500.0,0.00024873,2]
[399951839,1766934640867,-500.0,0.00024873,2]
[399951841,1766934640877,-500.0,0.00024873,2]
[399951843,1766934640886,-500.0,0.00024873,2]
[399951845,1766934640895,-500.0,0.00024873,2]
[399951847,1766934640904,-500.0,0.00024873,2]
[399951849,1766934640913,-500.0,0.00024873,2]
[399951851,1766934640922,-383.9531783,0.00024873,2]
[399951853,1766934640934,-703.21150033,0.000249,30]
[399951855,1766934640943,-2833.73,0.000249,7]
[399951857,1766934640953,-16880.78020509,0.000249,2]
[399951859,1766934640962,-640376.298304,0.000249,2]
[399951861,1766934640972,-500.0,0.00024927,2]
[399951863,1766934640981,-500.0,0.00024932,2]
[399951865,1766934640991,-500.0,0.00024955,2]
[399951867,1766934641000,-1076.609396,0.0002498,5]
[399951869,1766934641009,-243.68363741,0.00024983,2]
[399951871,1766934641018,-19730.2425915,0.0002499,2]
[399951873,1766934641027,-1084.14842173,0.00025,2]
[399951875,1766934641036,-2671.3597478,0.00025,2]
[399951877,1766934641045,-150.0,0.00025,2]
[399951879,1766934641054,-500.0,0.00025,2]
[399951881,1766934641064,-15000.0,0.00025,2]
[399951883,1766934641073,-10388.83909789,0.00025,2]
[399951885,1766934641082,-10364.0,0.00025,2]
[399951887,1766934641093,-20000.0,0.00025,3]
[399951889,1766934641103,-1123.0,0.00025,5]
[399951891,1766934641112,-500.0,0.00025,5]
[399951893,1766934641124,-500.0,0.00025,5]
[399951895,1766934641142,-500.0,0.00025,5]
[399951898,1766934641151,-500.0,0.00025,5]
[399951901,1766934641160,-431.71,0.00025,10]
[399951903,1766934641170,-500.0,0.00025,5]
[399951905,1766934641180,-500.0,0.00025,5]
[399951906,1766934641190,-378.0,0.00025,8]
[399951908,1766934641199,-224922.2462527,0.00025,15]
[399951910,1766934641209,-124443.36247788,0.00025,2]
[399951912,1766934641218,-11291.76584997,0.00025,2]
[399951914,1766934641227,-183.0,0.00025,7]
[399951916,1766934641236,-1000.0,0.00025,5]
[399951918,1766934641245,-1017.0,0.00025,2]
[399951921,1766934641255,-1300.0,0.00025024,7]
[399951923,1766934641264,-995.3526357,0.00025031,7]
[399951925,1766934641275,-177.86608778,0.00025054,26]
[399951927,1766934641283,-1283.56442805,0.00025055,2]
[399951928,1766934641293,-806.28,0.0002506,3]
[399951931,1766934641305,-500.0,0.00025069,2]
[399951932,1766934641314,-245.57686301,0.00025097,32]
[399951935,1766934641323,-163.75518554,0.00025097,10]
[399951937,1766934641332,-255.15010413,0.00025097,10]
[399951939,1766934641343,-1300.0,0.00025104,7]
[399951941,1766934641352,-1300.0,0.00025127,7]
[399951943,1766934641361,-1441.98478323,0.0002513,7]
[399951945,1766934641371,-579.38840045,0.000252,5]
[399951947,1766934641381,-250.0,0.00025205,2]
[399951949,1766934641391,-500.0,0.00025206,2]
[399951951,1766934641400,-177.86608778,0.00025335,30]
[399951953,1766934641409,-312.0,0.00025336,2]
[399951955,1766934641418,-500.0,0.00025343,2]
[399951957,1766934641427,-163.75518554,0.00025392,14]
[399951959,1766934641436,-245.57686301,0.00025392,48]
[399951961,1766934641445,-255.15010413,0.00025392,14]
[399951963,1766934641455,-156.93,0.000254,2]
[399951965,1766934641464,-1074.39,0.000254,14]
[399951967,1766934641474,-8007.25,0.000254,2]
[399951969,1766934641483,-200.0,0.00025451,30]
[399951971,1766934641491,-200.0,0.00025451,30]
[399951974,1766934641510,-200.0,0.00025451,30]
[399951976,1766934641520,-900.0,0.00025469,3]
[399951978,1766934641529,-500.0,0.0002548,2]
[399951980,1766934641539,-1000.0,0.000255,2]
[399951982,1766934641549,-10000.0,0.000255,15]
[399951984,1766934641558,-190.67469867,0.0002554,16]
[399951986,1766934641568,-232.16721806,0.0002554,56]
[399951988,1766934641578,-283.21065879,0.0002554,16]
[399951990,1766934641587,-500.0,0.00025617,2]
[399951992,1766934641597,-245.57686301,0.00025687,63]
[399951994,1766934641606,-163.75518554,0.00025687,18]
[399951996,1766934641615,-255.15010413,0.00025687,18]
[399951998,1766934641626,-350.0,0.00025753,2]
[399952000,1766934641635,-500.0,0.00025754,2]
[399952002,1766934641645,-243.6836374,0.00025798,110]
[399952004,1766934641655,-16880.78020507,0.00025849,2]
[399952006,1766934641665,-500.0,0.00025891,2]
[399952008,1766934641674,-245.57686301,0.00025982,79]
[399952010,1766934641684,-163.75518554,0.00025982,22]
[399952036,1766934641908,-255.15010413,0.00025982,22]
[399952038,1766934641920,-39732.56759745,0.00026,10]
[399952040,1766934641930,-529.17549572,0.00026,2]
[399952042,1766934641939,-19900.0,0.00026,2]
[399952044,1766934641948,-161.0,0.00026,5]
[399952046,1766934641958,-342.88077486,0.00026,2]
[399952048,1766934641967,-500.0,0.00026,30]
[399952050,1766934641976,-1017.0,0.00026,2]
[399952052,1766934641985,-500.0,0.00026028,2]
[399952054,1766934641994,-243.68363741,0.00026035,56]
[399952056,1766934642004,-2833.73,0.000261,7]
[399952058,1766934642012,-194.3999376,0.0002616,2]
[399952060,1766934642022,-500.0,0.00026165,2]
[399952062,1766934642031,-245.57686301,0.00026277,94]
[399952064,1766934642040,-163.75518554,0.00026277,26]
[399952066,1766934642049,-255.15010413,0.00026277,26]
[399952068,1766934642059,-450.0,0.00026301,2]
[399952070,1766934642068,-500.0,0.00026302,2]
[399952072,1766934642078,-500.0,0.00026439,2]
[399952074,1766934642087,-218.44502857,0.00026571,110]
[399952076,1766934642097,-190.67469867,0.00026571,30]
[399952078,1766934642106,-232.16721806,0.00026571,110]
[399952080,1766934642115,-283.21065879,0.00026571,30]
[399952082,1766934642124,-255.15010413,0.00026571,30]
[399952084,1766934642133,-500.0,0.00026576,2]
[399952086,1766934642142,-1074.39,0.000266,14]
[399952088,1766934642151,-8007.25,0.000266,2]
[399952090,1766934642161,-394.139689,0.00026676,2]
[399952092,1766934642173,-160.66,0.000267,2]
[399952094,1766934642183,-500.0,0.00026713,2]
[399952096,1766934642192,-5000.0,0.00026795,2]
[399952098,1766934642201,-16880.78020507,0.00026798,2]
[399952100,1766934642211,-550.0,0.00026849,2]
[399952102,1766934642221,-500.0,0.0002685,2]
[399952104,1766934642230,-156.93,0.000269,2]
[399952106,1766934642239,-500.0,0.00026987,2]
[399952108,1766934642248,-500.0,0.00027,30]
[399952110,1766934642258,-1017.0,0.00027,2]
[399952112,1766934642267,-200.0,0.00027025,30]
[399952114,1766934642276,-200.0,0.00027025,30]
[399952116,1766934642286,-200.0,0.00027025,30]
[399952118,1766934642297,-200.0,0.00027025,30]
[399952120,1766934642308,-200.0,0.00027025,30]
[399952122,1766934642317,-200.0,0.00027025,30]
[399952124,1766934642326,-500.0,0.00027124,2]
[399952127,1766934642336,-1000.0,0.00027227,30]
[399952128,1766934642347,-1000.0,0.00027227,30]
[399952131,1766934642356,-752.1007358,0.0002726,2]
[399952132,1766934642365,-466.25677031,0.00027261,2]
[399952134,1766934642375,-10000.0,0.00027297,2]
[399952136,1766934642385,-339.0,0.00027336,2]
[399952138,1766934642395,-150.0,0.0002739,2]
[399952140,1766934642404,-568.61645691,0.0002739,7]
[399952143,1766934642413,-150.0,0.00027397,2]
[399952145,1766934642423,-223.69454277,0.00027397,2]
[399952146,1766934642433,-650.0,0.00027397,5]
[399952148,1766934642443,-403.565087,0.00027397,7]
[399952150,1766934642452,-403.565087,0.00027397,7]
[399952151,1766934642462,-403.565087,0.00027397,7]
[399952153,1766934642471,-403.565087,0.00027397,7]
[399952155,1766934642480,-403.565087,0.00027397,7]
[399952157,1766934642490,-403.565087,0.00027397,7]
[399952159,1766934642499,-403.565087,0.00027397,7]
[399952161,1766934642509,-403.565087,0.00027397,7]
[399952163,1766934642524,-403.565087,0.00027397,7]
[399952165,1766934642534,-403.565087,0.00027397,7]
[399952167,1766934642545,-403.565087,0.00027397,7]
[399952169,1766934642555,-403.565087,0.00027397,7]
[399952171,1766934642564,-403.565087,0.00027397,7]
[399952173,1766934642572,-403.565087,0.00027397,7]
[399952175,1766934642582,-403.565087,0.00027397,7]
[399952177,1766934642591,-403.565087,0.00027397,7]
[399952179,1766934642600,-403.565087,0.00027397,7]
[399952181,1766934642609,-403.565087,0.00027397,7]
[399952183,1766934642618,-403.565087,0.00027397,7]
[399952185,1766934642627,-403.56509,0.00027397,7]
[399952187,1766934642636,-164.407203,0.00027397,7]
[399952189,1766934642645,-164.407203,0.00027397,7]
[399952191,1766934642654,-164.407203,0.00027397,7]
[399952193,1766934642663,-164.407203,0.00027397,7]
[399952195,1766934642672,-164.407203,0.00027397,7]
[399952197,1766934642681,-164.407203,0.00027397,7]
[399952199,1766934642690,-164.407203,0.00027397,7]
[399952201,1766934642700,-164.407203,0.00027397,7]
[399952203,1766934642710,-164.407203,0.00027397,7]
[399952205,1766934642720,-164.407203,0.00027397,7]
[399952207,1766934642729,-164.407203,0.00027397,7]
[399952209,1766934642739,-164.407203,0.00027397,7]
[399952211,1766934642748,-164.407203,0.00027397,7]
[399952213,1766934642757,-164.407203,0.00027397,7]
[399952215,1766934642766,-164.407203,0.00027397,7]
[399952217,1766934642776,-164.407203,0.00027397,7]
[399952219,1766934642785,-164.407203,0.00027397,7]
[399952221,1766934642795,-164.407203,0.00027397,7]
[399952223,1766934642804,-164.407203,0.00027397,7]
[399952224,1766934642814,-164.407197,0.00027397,7]
[399952226,1766934642823,-151.0,0.00027397,7]
[399952228,1766934642832,-151.0,0.00027397,7]
[399952230,1766934642841,-151.0,0.00027397,7]
[399952232,1766934642851,-151.0,0.00027397,7]
[399952234,1766934642862,-151.0,0.00027397,7]
[399952236,1766934642871,-151.0,0.00027397,7]
[399952238,1766934642880,-151.0,0.00027397,7]
[399952240,1766934642889,-229.912202,0.00027397,7]
[399952242,1766934642900,-500.0,0.00027397,5]
[399952244,1766934642910,-157.03596701,0.00027397,5]
[399952246,1766934642919,-150.0,0.00027397,5]
[399952248,1766934642928,-150.0,0.00027397,5]
[399952250,1766934642937,-2833.73,0.000274,7]
[399952252,1766934642946,-382.75117648,0.00027425,30]
[399952254,1766934642956,-45897.01730541,0.000275,2]
[399952256,1766934642965,-150.0,0.00027534,2]
[399952257,1766934642974,-199.13325736,0.00027671,2]
[399952259,1766934642983,-16880.78020507,0.00027747,2]
[399952261,1766934642992,-384.7456578,0.00027753,30]
[399952263,1766934643002,-1000.0,0.00027777,5]
[399952265,1766934643011,-1074.39,0.000278,14]
[399952267,1766934643020,-1283.56442805,0.00027851,2]
[399952269,1766934643030,-156.59469927,0.00027855,7]
[399952271,1766934643039,-1000.0,0.00027945,5]
[399952274,1766934643052,-750.0,0.00027945,5]
[399952277,1766934643061,-250.0,0.00027945,5]
[399952279,1766934643071,-250.0,0.00027945,5]
[399952283,1766934643080,-2003.05716594,0.00028,2]
[399952287,1766934643089,-13358.0,0.00028,2]
[399952291,1766934643099,-15305.31563963,0.00028,2]
[399952293,1766934643108,-519.60661968,0.00028,2]
[399952296,1766934643117,-69731.56924867,0.00028,2]
[399952299,1766934643127,-500.0,0.00028,30]
[399952302,1766934643136,-8007.25,0.00028,2]
[399952305,1766934643145,-1017.0,0.00028,2]
[399952307,1766934643155,-2718.152546,0.00028,2]
[399952309,1766934643164,-1500.0,0.00028,2]
[399952311,1766934643173,-1537.02206133,0.00028077,7]
[399952313,1766934643182,-156.59469926,0.00028132,7]
[399952315,1766934643191,-163.75518552,0.00028362,30]
[399952317,1766934643200,-850.0,0.00028493,5]
[399952319,1766934643210,-1340.73221001,0.00028493,5]
[399952321,1766934643219,-350.0,0.00028493,5]
[399952323,1766934643229,-350.0,0.00028493,5]
[399952325,1766934643238,-229681.21369718,0.000285,7]
[399952326,1766934643344,-67225.61141455,0.000285,7]
[399952327,1766934643354,-1040.35897922,0.000285,7]
[399952328,1766934643363,-240.88057541,0.000285,2]
[399952329,1766934643471,-1259.11942459,0.000285,2]
[399952330,1766934643480,-1193.53188901,0.00028521,10]
[399952331,1766934643494,-10162.46811099,0.00028521,10]
[399952332,1766934643504,-420.0,0.00028521,10]
[399952334,1766934643514,-206.57119575,0.00028679,5]
[399952336,1766934643523,-156.36396904,0.00028679,5]
[399952338,1766934643533,-2380.30904927,0.00028696,2]
[399952539,1766934651210,-235.44,0.0002499,10]
[399952540,1766934651219,-14500.4711558,0.00028696,2]
[399952541,1766934651228,-2028.77969745,0.0002876,5]
[399952542,1766934651239,-1971.22030255,0.0002876,5]
[399952543,1766934651248,-11871.99960435,0.0002876,2]
[399952544,1766934651259,-5782.61069268,0.0002876,2]
[399952545,1766934651270,-2082.97485638,0.0002876,2]
[399952546,1766934651281,-3861.97113319,0.0002876,2]
[399952553,1766934826822,231.2634663,0.0003013,120]
[399952559,1766935219386,-500.0,0.000132,2]
[399952577,1766935819859,-500.0,0.000132,2]
[399952578,1766935822663,-107.0,0.000132,2]
[399952579,1766935822686,-160.64,0.000132,2]
[399952580,1766935822709,-90.59093168,0.00013205,2]
[399952618,1766935831611,-59.40906832,0.00013205,2]
[399952620,1766935831620,-150.577059,0.00013273,2]
[399952622,1766935831629,-50.3012582,0.00013273,2]
[399952625,1766935831643,-409.59935092,0.00013273,2]
[399952627,1766935831652,-1004.0,0.00013689,2]
[399952628,1766935831661,-300.0,0.00013689,2]
[399952631,1766935831670,-286.0,0.00013689,2]
[399952632,1766935831679,-1200.0,0.00013689,2]
[399952635,1766935831688,-500.0,0.0001369,2]
[399952636,1766935831697,-500.0,0.0001369,2]
[399952639,1766935831708,-500.0,0.0001369,2]
[399952640,1766935831718,-500.0,0.0001369,2]
[399952642,1766935831729,-168.77603184,0.0001369,2]
[399952645,1766935831738,-500.0,0.0001369,2]
[399952647,1766935831747,-500.0,0.0001369,2]
[399952648,1766935831757,-449.34599896,0.0001369,2]
[399952650,1766935831766,-500.0,0.0001369,2]
[399952652,1766935831776,-245.74939373,0.0001369,2]
[399952654,1766935831785,-500.0,0.0001369,2]
[399952656,1766935831795,-500.0,0.0001369,2]
[399952658,1766935831803,-500.0,0.0001369,2]
[399952661,1766935831813,-173.3396032,0.0001369,2]
[399952663,1766935831824,-500.0,0.0001369,2]
[399952665,1766935831835,-500.0,0.0001369,2]
[399952667,1766935831844,-500.0,0.0001369,2]
[399952669,1766935831854,-500.0,0.0001369,2]
[399952671,1766935831863,-500.0,0.0001369,2]
[399952672,1766935831872,-500.0,0.0001369,2]
[399952675,1766935831882,-151.30904193,0.0001369,2]
[399952677,1766935831893,-549.149475,0.00013699,2]
[399952679,1766935831903,-600.0,0.00013965,2]
[399952681,1766935831912,-1354.1998846,0.00015204,2]
[399952683,1766935831921,-503.52417154,0.00015204,2]
[399952685,1766935831930,-500.0,0.00015204,2]
[399952686,1766935831939,-375.64564285,0.00015204,2]
[399952688,1766935831948,-1354.1998846,0.00015204,2]
[399952690,1766935831958,-1376.58306481,0.00015204,2]
[399952692,1766935831967,-1376.58306481,0.00015204,2]
[399952694,1766935831976,-1358.98717153,0.00015204,2]
[399952696,1766935831985,-1358.98717153,0.00015204,2]
[399952698,1766935831995,-1370.87830928,0.00015204,2]
[399952700,1766935832004,-1350.51381266,0.00015204,2]
[399952702,1766935832013,-1350.51381266,0.00015204,2]
[399952704,1766935832022,-1383.02618222,0.00015204,2]
[399952706,1766935832031,-1383.02618222,0.00015204,2]
[399952708,1766935832041,-1401.00980441,0.00015204,2]
[399952710,1766935832050,-1367.39219326,0.00015204,2]
[399952712,1766935832059,-1367.39219326,0.00015204,2]
[399952714,1766935832068,-177.0,0.00015205,2]
[399952715,1766935832078,-720.0,0.00015361,2]
[399952717,1766935832088,-864.0,0.00016897,2]
[399952719,1766935832098,-204.0,0.00017205,2]
[399952722,1766935832108,-320.89110703,0.000179,2]
[399952724,1766935832118,-183.08,0.0001799,2]
[399952725,1766935832128,-183.08,0.0001799,2]
[399952728,1766935832139,-183.08,0.0001799,2]
[399952730,1766935832149,-5147.1492039,0.00017998,2]
[399952732,1766935832158,-7791.82064704,0.00018,5]
[399953029,1766935837691,-201.57,0.0001799,3]
[399953031,1766935837701,-12031.61313768,0.00018,5]
[399953033,1766935837711,-986.95716686,0.00018,5]
[399953035,1766935837723,-1047.58776972,0.00018,5]
[399953042,1766935837785,-5125.06920817,0.00018,5]
[399953044,1766935837797,-1273.6685903,0.00018,5]
[399953046,1766935837807,-1217.23,0.00018,5]
[399953134,1766935839972,-17470.8,0.00018,5]
[399953137,1766935840166,-3e-08,0.00018,5]
[399953179,1766935845774,-4104.05,0.00018,5]
[399953180,1766935845786,-93762.38234905,0.00018,5]
[399953181,1766935845795,-1000.0,0.00018587,2]
[399953182,1766935845805,-231.0,0.00019205,2]
[399953183,1766935845815,-403.14,0.0001936,3]
[399953184,1766935845829,-1402.299,0.0002,2]
[399953185,1766935845838,-320.89110701,0.00020104,2]
[399953186,1766935845848,-549.149475,0.00020187,2]
[399953187,1766935845857,-1000.0,0.00020446,2]
[399953188,1766935845870,-244.0,0.00020446,2]
[399953189,1766935845880,-258.0,0.00021205,2]
[399953190,1766935845890,-1416.87,0.000222,7]
[399953191,1766935845902,-320.89110701,0.00022307,2]
[399953192,1766935845913,-1000.0,0.0002249,10]
[399953193,1766935845923,-492.0,0.0002249,10]
[399953194,1766935845933,-285.0,0.00023205,2]
[399953195,1766935845942,-164.28801351,0.00024128,2]
[399953196,1766935845951,-413.58049637,0.00024128,2]
[399953197,1766935845960,-413.58049637,0.00024273,9]
[399953198,1766935845970,-164.28801351,0.00024418,17]
[399953199,1766935845980,-413.58049637,0.00024418,17]
[399953200,1766935845990,-320.89110701,0.00024511,2]
[399953201,1766935846000,-413.58049637,0.00024563,25]
[399953202,1766935846009,-150.0,0.00024658,2]
[399953203,1766935846019,-380.0,0.00024658,2]
[399953204,1766935846028,-164.28801351,0.00024708,32]
[399953205,1766935846039,-413.58049637,0.00024708,32]
[399953206,1766935846049,-214.52,0.00024728,8]
[399953207,1766935846059,-1000.0,0.00024739,10]
[399953208,1766935846224,-791.0,0.00024739,10]
[399953209,1766935846234,-413.58049637,0.00024853,40]
[399953210,1766935846243,-183.08,0.0002489,2]
[399953211,1766935846253,-26406.7370733,0.000249,2]
[399953212,1766935846270,-253.7425319,0.000249,2]
[399953213,1766935846281,-7485.11450179,0.000249,2]
[399953214,1766935846292,-1187.79495481,0.000249,2]
[399953215,1766935846303,-1135.04524533,0.000249,2]
[399953216,1766935846315,-289.54641168,0.000249,2]
[399953217,1766935846326,-17901.02715766,0.000249,2]
[399953218,1766935868809,158.36,0.00013167,2]
[399953219,1766936010031,200.0,0.0002876,120]
[399953220,1766936011755,200.0,0.0002876,120]
[399953221,1766936165665,63444.942528,0.00030134,120]
[399953222,1766936272533,7280.0465507,0.00012787,2]
[399953223,1766936420595,-320.63768731,0.000132,2]
[399953224,1766936423413,-286.36231269,0.000132,2]
[399953225,1766936423453,-144.86210094,0.000132,2]
[399953227,1766936581448,-152.13,0.000132,2]
[399953228,1766936599033,154.42,0.000132,2]
[399953229,1766936654599,152.25,0.000132,2]
[399953230,1766936721267,153.97,0.000132,2]
[399953231,1766936770951,152.34,0.000132,2]
[399953232,1766936843210,153.63,0.000132,2]
[399953233,1766936890688,152.4,0.000132,2]
[399953234,1766936963926,153.4,0.000132,2]
[399953243,1766937015325,152.45,0.000132,2]
[399953280,1766937040061,-150.0,0.00013259,2]
[399953282,1766937040071,-608.0,0.00013259,2]
[399953284,1766937040082,-500.0,0.00013273,2]
[399953286,1766937040091,-500.0,0.00013679,2]
[399953288,1766937040100,-500.0,0.00013679,2]
[399953290,1766937040110,-500.0,0.00013679,2]
[399953292,1766937040119,-500.0,0.00013679,2]
[399953294,1766937040129,-500.0,0.00013679,2]
[399953297,1766937040138,-416.19437708,0.00013679,2]
[399953298,1766937040148,-500.0,0.00013679,2]
[399953301,1766937040157,-192.93727644,0.00013679,2]
[399953303,1766937040167,-500.0,0.00013679,2]
[399953305,1766937040176,-500.0,0.00013679,2]
[399953306,1766937040184,-500.0,0.00013679,2]
[399953308,1766937040194,-500.0,0.00013679,2]
[399953310,1766937040205,-500.0,0.00013679,2]
[399953311,1766937040214,-500.0,0.00013679,2]
[399953314,1766937040225,-500.0,0.00013679,2]
[399953315,1766937040235,-500.0,0.00013679,2]
[399953317,1766937040244,-500.0,0.00013679,2]
[399953319,1766937040254,-500.0,0.00013679,2]
[399953322,1766937040263,-500.0,0.00013679,2]
[399953324,1766937040273,-500.0,0.00013679,2]
[399953325,1766937040282,-500.0,0.00013679,2]
[399953327,1766937040292,-500.0,0.00013679,2]
[399953329,1766937040302,-500.0,0.00013679,2]
[399953331,1766937040311,-500.0,0.00013679,2]
[399953333,1766937040320,-500.0,0.00013679,2]
[399953335,1766937040330,-500.0,0.00013679,2]
[399953337,1766937040339,-500.0,0.00013679,2]